Cogmind - Beta 14 @@@ ROGUE MODE // 2025.03.09 @ 23:41:45 Player: morimori Result: Destroyed by H-77 Assassin with Coil Gun Performance ------------- Evolutions (7) 3500 Regions Visited (21) 4200 Robots Destroyed (154) 770 Value Destroyed (3820) 3820 Prototype IDs (37) 740 Alien Tech Used (3) 600 Bonus (-437) -437 TOTAL SCORE: 13193 Bonus ------- High Alert Combat Kills 34 Follower Combat Kills 700 Met Zhirov 300 Friendly Fire -1471 Cogmind --------- Core Integrity 0/1300 Matter 51/300 Energy 99/100 System Corruption 5% Temperature Cool (0) Movement Core (50) Location -3/Research Parts ------- > --- POWER (2) -------- (None) > --- PROPULSION (6) --- (None) > --- UTILITY (12) ----- (None) > --- WEAPON (2) ------- (None) > --- INVENTORY (5) ---- Advanced Coolant Injector Quantum Capacitor Heavy Reactive Plating Peak State ------------ > --- POWER ------------ Neutrino Core > --- PROPULSION ------- Gravmag Array Combat Gravmag System Combat Gravmag System Improved Linear Gravjet Combat Linear Gravjet > --- UTILITY ---------- Experimental Cooling System High-capacity Storage Unit Advanced Energy Well Advanced Sensor Array Advanced Signal Interpreter Improved Terrain Scanner Centrium Light Armor Plating Graphene Brace Advanced Hardlight Generator Hacking Suite Advanced System Shield > --- WEAPON ----------- Gamma Bomb Array Mini Smartbomb Launcher > --- INVENTORY -------- Antimatter Reactor Combat Gravmag System Improved Gyrokinetic Inverter Advanced Coolant Injector Huge Storage Unit Quantum Capacitor Heavy Reactive Plating Point Defense Array Authchip [Device] Authchip [Device] Authchip [Device] Authchip [Device] Authchip [Processor] Advanced System Restoration Module [Rating: 129] Favorites ----------- Power Makeshift Power Source Engine Makeshift Power Source Power Core Micro Nuclear Core Reactor Light Antimatter Reactor Propulsion Gravmag Array Leg Myomer Leg Wheel Wheel Hover Unit Gravmag Array Utility Hacking Suite Device Improved Terrain Scanner Storage High-capacity Storage Unit Processor Advanced Signal Interpreter Hackware Hacking Suite Protection Experimental Utility Shielding Weapon Advanced Plasma Cannon Energy Gun Heavy EM Pulse Gun Energy Cannon Advanced Plasma Cannon Ballistic Gun Heavy Assault Rifle Ballistic Cannon Antimatter Cannon Launcher Mini Smartbomb Launcher Piercing Weapon Spear Build | -11 -10 -10 -9 -9 -8 -7 -7 -7 -6 -6 -6 -5 -5 -5 -5 -4 -4 -4 -4 -4 -3 ------- Run | Yrd Mat Min Mat Min Mat Fac Low Low Fac Was Fac Fac Upp Upp Zhi Pro Fac Was Fac Ext Res Slots Evolved 14 | . . . 2 . 2 2 . . 2 . . 2 . . . . 2 . . . 2 Power 1 | . . . . . . . . . 1 . . . . . . . . . . . . Propulsion 3 | . . . . . 2 1 . . . . . . . . . . . . . . . Utility 10 | . . . 2 . . 1 . . 1 . . 2 . . . . 2 . . . 2 Weapon . | . . . . . . . . . . . . . . . . . . . . . . Parts Attached 291 | 8 25 4 31 10 10 20 5 2 15 4 10 5 10 5 12 10 18 1 24 36 26 Power 37 | 1 2 . 5 1 1 1 1 1 6 . 2 1 2 1 2 . 2 . . 8 . Engine 19 | 1 2 . 5 1 . . . . 2 . 1 . 2 1 1 . 2 . . 1 . Core 14 | . . . . . 1 1 1 1 4 . 1 1 . . . . . . . 4 . Reactor 4 | . . . . . . . . . . . . . . . 1 . . . . 3 . Propulsion 57 | 3 2 1 4 . 2 11 2 1 2 . 2 . . . . . 11 . 2 7 7 Treads . | . . . . . . . . . . . . . . . . . . . . . . Leg 2 | . . . . . . . . . . . . . . . . . . . . . 2 Wheel 11 | 3 2 1 4 . 1 . . . . . . . . . . . . . . . . Hover 44 | . . . . . 1 11 2 1 2 . 2 . . . . . 11 . 2 7 5 Flight . | . . . . . . . . . . . . . . . . . . . . . . Utility 133 | 2 12 2 17 4 7 2 1 . 3 . 2 3 5 3 8 7 5 1 19 16 14 Device 76 | 1 9 1 7 3 3 2 1 . . . 1 . 3 3 4 5 1 1 14 11 6 Storage 11 | 1 2 . . . . . . . 1 . . 1 . . 1 . . . 1 3 1 Processor 9 | . . . 4 . 2 . . . 1 . 1 1 . . . . . . . . . Hackware 11 | . . . . . . . . . 1 . . 1 . . 1 1 4 . 2 . 1 Protection 26 | . 1 1 6 1 2 . . . . . . . 2 . 2 1 . . 2 2 6 Artifact . | . . . . . . . . . . . . . . . . . . . . . . Weapon 64 | 2 9 1 5 5 . 6 1 . 4 4 4 1 3 1 2 3 . . 3 5 5 Energy Gun 11 | 1 4 1 . 2 . 1 1 . . 1 . . . . . . . . . . . Energy Cannon 6 | . . . . . . . . . . . . 1 . 1 . 2 . . . 2 . Ballistic Gun 14 | 1 5 . 5 3 . . . . . . . . . . . . . . . . . Ballistic Cannon 9 | . . . . . . 3 . . 2 1 3 . . . . . . . . . . Launcher 21 | . . . . . . 2 . . . 1 1 . 3 . 2 1 . . 3 3 5 Special Weapon . | . . . . . . . . . . . . . . . . . . . . . . Impact Weapon . | . . . . . . . . . . . . . . . . . . . . . . Slashing Weapon . | . . . . . . . . . . . . . . . . . . . . . . Piercing Weapon 3 | . . . . . . . . . 2 1 . . . . . . . . . . . Special Melee Weapon . | . . . . . . . . . . . . . . . . . . . . . . Unidentified Prototypes 14 | . . . 1 . . . 1 . 1 2 . 1 . . 5 . . . 2 . 1 Corrupted Parts 2 | . . . . . . . . 1 . . . . . . . . . . . 1 . System Corruption 8 | . . . . . . . . 1 . . . . . . . . . . . 7 . Parts Lost 42 | . 2 2 3 2 . 1 . . . . 1 . . . . . . . 1 15 15 Power 10 | . . . 1 . . . . . . . 1 . . . . . . . 1 6 1 Propulsion 15 | . 2 1 2 . . 1 . . . . . . . . . . . . . 2 7 Utility 11 | . . . . . . . . . . . . . . . . . . . . 5 6 Weapon 6 | . . 1 . 2 . . . . . . . . . . . . . . . 2 1 Highest Loss Streak 7 | . 1 2 1 1 . 1 . . . . 1 . . . . . . . 1 4 7 To Critical Strikes . | . . . . . . . . . . . . . . . . . . . . . . Average Slot Usage (%) 88 | . 99 99 98 99 94 94 92 92 86 81 78 71 77 77 82 83 88 90 90 84 65 Engine 6 | . 14 14 11 11 . . . . 1 . . . 10 11 11 11 9 10 8 . . Core 2 | . . . . . 8 7 7 7 10 12 9 5 . . . . . . . 3 2 Wheel 7 | . 27 27 21 22 24 . . . . . . . . . . . . . . . . Hover 18 | . . . . . 6 37 38 42 34 25 24 22 22 22 22 22 23 25 25 24 20 Device 12 | . 11 8 12 21 10 15 14 14 12 12 12 11 10 10 7 10 9 10 9 11 14 Storage 7 | . 14 14 11 11 9 7 7 7 6 6 6 5 5 5 5 5 5 5 5 6 8 Processor 9 | . . . 16 11 15 15 14 14 12 12 12 11 11 11 11 11 10 10 10 6 3 Hackware 10 | . . . . . . . . . 6 6 6 10 11 11 15 15 24 25 25 22 8 Protection 1 | . 2 5 2 . . . . . . . . . . . 1 . . . . 2 1 Energy Gun 3 | . 13 28 . 5 . 1 1 7 1 . . . . . . . . . . . . Energy Cannon 2 | . . . . . . . . . . . . 3 5 3 3 4 5 5 5 4 . Ballistic Gun 4 | . 14 . 21 16 18 4 . . . . . . . . . . . . . . . Peak Build Rating 129 | 8 13 13 20 22 28 41 47 51 70 77 76 79 87 86 91 90 106 106 118 119 129 Average Rating 62 | 6 8 11 17 21 25 33 41 47 59 69 69 71 76 75 85 85 99 105 109 106 99 On Entrance 58 | . 7 13 11 19 22 27 41 47 51 68 70 69 72 86 77 90 85 106 106 113 98 Naked Turns 1 | . . . . . . . . . . . . . . . . . . . . . 1 Heaviest Build 120 | 15 32 34 37 39 51 36 36 40 66 66 63 57 107 107 99 99 59 59 72 83 120 Greatest Support 78 | 26 20 20 24 24 34 39 50 54 62 62 62 59 59 59 59 59 66 66 70 76 78 Greatest Overweight (x) 19 | . 1 3 3 1 1 1 . . 1 1 1 . 1 1 1 1 1 . 19 1 3 Average Overweight (x) . | . . 1 1 1 . . . . . . . . . . . . . . . . . Largest Inventory Capacity 20 | 8 15 15 15 15 15 15 15 15 20 20 20 20 20 20 20 20 20 20 20 20 20 Average Capacity 17 | 7 12 15 15 15 15 15 15 15 19 20 20 20 20 20 20 20 20 20 20 20 19 Most Carried 20 | 8 15 15 15 15 15 15 15 15 20 20 20 20 20 20 20 20 20 20 20 20 20 Average Carried 16 | 4 10 14 14 14 14 14 14 14 18 19 19 19 19 19 19 19 19 19 19 18 18 Final Capacity 20 | 8 15 15 15 15 15 15 15 15 20 20 20 20 20 20 20 20 20 20 20 20 5 Final Carried 20 | 6 15 14 15 15 15 15 15 14 19 20 20 20 18 20 19 20 20 20 19 20 5 Class Distribution -------------------- 24% | Hacker-Scout 17% | Scavenger-Mutant 17% | Mutant 14% | Scavenger-Scout 12% | Wizard-Mutant 6% | Hacker-Mutant 4% | Wizard-Scout Dominant Class ---------------- Scavenger-Mutant | -10/Materials Scavenger-Mutant | -10/Mines Scavenger-Mutant | -9/Materials Mutant | -9/Mines Scavenger-Mutant | -8/Materials Scavenger-Scout | -7/Factory Scavenger-Scout | -7/Lower Caves Scavenger-Scout | -7/Lower Caves Scavenger-Mutant | -6/Factory Scavenger-Scout | -6/Waste Scavenger-Scout | -6/Factory Hacker-Scout | -5/Factory Hacker-Scout | -5/Upper Caves Hacker-Scout | -5/Upper Caves Hacker-Scout | -5/Zhirov Hacker-Scout | -4/Proximity Caves Hacker-Scout | -4/Factory Wizard-Scout | -4/Waste Wizard-Mutant | -4/Factory Wizard-Mutant | -4/Extension Hacker-Mutant | -3/Research Resources | -11 -10 -10 -9 -9 -8 -7 -7 -7 -6 -6 -6 -5 -5 -5 -5 -4 -4 -4 -4 -4 -3 ----------- Run | Yrd Mat Min Mat Min Mat Fac Low Low Fac Was Fac Fac Upp Upp Zhi Pro Fac Was Fac Ext Res Matter Collected 4813 | 322 389 61 560 155 252 45 371 10 90 134 55 166 140 80 130 123 223 . 417 945 145 Remotely . | . . . . . . . . . . . . . . . . . . . . . . Salvage Created 6140 | 192 1032 269 553 192 224 75 223 . . 570 129 . 2 224 419 364 223 . 343 895 211 Parts 306 | 16 50 17 54 12 10 11 8 . . 11 21 . 3 2 4 16 7 . 20 32 12 Haulers Intercepted 2 | . 1 . 1 . . . . . . . . . . . . . . . . . . Recyclers Shooed 4 | . 1 . . . 1 . . . . . . . . . . . 1 . 1 . . Parts Field Recycled . | . . . . . . . . . . . . . . . . . . . . . . Retrieved Matter . | . . . . . . . . . . . . . . . . . . . . . . Parts Self-Destructed 14 | . . . . . . . 1 . . . . . 3 1 4 5 . . . . . Prevented 7 | . . . . . . . . . . . . . . . . 7 . . . . . Kills | -11 -10 -10 -9 -9 -8 -7 -7 -7 -6 -6 -6 -5 -5 -5 -5 -4 -4 -4 -4 -4 -3 ------- Run | Yrd Mat Min Mat Min Mat Fac Low Low Fac Was Fac Fac Upp Upp Zhi Pro Fac Was Fac Ext Res Combat Hostiles Destroyed 96 | . 19 7 14 7 5 4 . . . . 3 . 4 . . 7 . . 10 13 3 Guns 45 | . 17 5 14 4 5 . . . . . . . . . . . . . . . . Cannons 4 | . . . . . . . . . . . . . . . . 1 . . 1 2 . AOE 39 | . . 2 . 1 . 4 . . . . 3 . 4 . . 4 . . 9 10 2 Classes Destroyed 16 | 3 6 . 1 1 . . 1 . . . 1 . . . . 1 . . . 2 . Worker 11 | 1 . 1 . . . 1 . . . . 1 . . . . . 1 . . 3 3 Builder 10 | . 2 . 1 . . . . . . . 1 . . . . . . . 2 4 . Tunneler 10 | 5 . . . . . . . . . . 2 . . . . . . . 1 2 . Hauler 2 | . 1 . 1 . . . . . . . . . . . . . . . . . . Recycler 8 | 1 2 . 1 . . . . . . . . . . . . . 2 . 1 1 . Mechanic 1 | . . . . . . . . . . . 1 . . . . . . . . . . Operator 5 | . 3 . . . 1 1 . . . . . . . . . . . . . . . Watcher 4 | . 2 . 2 . . . . . . . . . . . . . . . . . . Swarmer 52 | . 3 5 10 4 1 4 . . . . 3 . 4 . . 5 . . 9 4 . Grunt 29 | . 16 2 . 2 3 . . . . . . . . . . . . . 1 5 . Protector 1 | . . . . 1 . . . . . . . . . . . . . . . . . Researcher 1 | . . . . . . . 1 . . . . . . . . . . . . . . Sentry 6 | . . . 4 . 1 . . . . . . . . . . . . . . . 1 Hunter 4 | . . . . . . . . . . . . . . . . 2 . . . 2 . Programmer 3 | . . . . . . . . . . . . . . . . . . . . 1 2 Thug 2 | . . 1 . . . . . . . . . . . . . . . . . 1 . Savage 5 | . . . . . . . . . . . . . . . . . . . . 5 . Best Kill Streak 12 | 4 4 3 5 4 3 4 . . . . 8 . 4 . . 5 1 . 6 12 3 Combat Bots Only 5 | . 4 3 4 4 3 4 . . . . 3 . 4 . . 5 . . 4 5 2 Max Kills in Single Turn 5 | 1 1 3 1 1 1 2 1 . . . 3 . 3 . . 3 1 . 5 2 2 Gunslinging . | . . . . . . . . . . . . . . . . . . . . . . Exploded 3 | . . 2 . 1 . 2 . . . . 1 . 3 . . 3 . . 3 2 1 Melee . | . . . . . . . . . . . . . . . . . . . . . . Uniques/NPCs Destroyed . | . . . . . . . . . . . . . . . . . . . . . . Combat | -11 -10 -10 -9 -9 -8 -7 -7 -7 -6 -6 -6 -5 -5 -5 -5 -4 -4 -4 -4 -4 -3 -------- Run | Yrd Mat Min Mat Min Mat Fac Low Low Fac Was Fac Fac Upp Upp Zhi Pro Fac Was Fac Ext Res Hostile Shots Fired 722 | . 76 20 73 23 15 5 9 3 2 . 39 . 19 . . 29 . . 67 98 244 Missed 265 | . 20 6 23 3 6 4 4 2 . . 16 . 6 . . 10 . . 20 38 107 Damage Taken 7828 | . 655 189 536 245 131 18 52 13 37 . 368 . 107 . . 177 . . 651 1615 3034 Core 1965 | . 175 48 119 32 . . . . . . 93 . . . . . . . 124 68 1306 Absorbed by Shields 544 | . . . . . . . . . . . . . . . . 24 . . 232 272 16 Redirected to Shielding 190 | . . . . . . . . . . . . . . . . . . . 43 147 . Ignored by Resistances 229 | . . . . . 4 . . . . . . . 74 . . 139 . . . . 12 Regen/Repaired (Parts) 548 | . 34 . . . 12 . . . . . . . . . . . 342 . 160 . . Core Remaining (%) 79 | 100 . 10 . 62 100 . . 100 . . 89 . . . . 100 . . . 77 . Volleys Fired 541 | 14 104 16 49 19 22 10 18 . 2 3 9 10 4 9 18 25 53 . 72 73 11 Largest 2 | 2 2 2 2 2 2 2 1 . 1 1 1 1 1 1 1 1 1 . 1 1 1 Hottest 105 | 70 100 90 46 90 46 55 55 . 55 40 43 98 43 98 98 98 98 . 98 105 80 Shots Fired 769 | 28 208 32 98 35 44 12 18 . 2 3 9 10 4 9 18 25 53 . 75 75 11 Gun 457 | 28 208 32 98 35 44 7 4 . 1 . . . . . . . . . . . . Cannon 256 | . . . . . . 1 14 . 1 3 6 10 . 9 18 17 53 . 70 54 . Launcher 56 | . . . . . . 4 . . . . 3 . 4 . . 8 . . 5 21 11 Special . | . . . . . . . . . . . . . . . . . . . . . . Kinetic 268 | 14 79 . 98 4 44 5 14 . 1 3 6 . . . . . . . . . . Thermal 352 | 14 107 . . . . . . . . . . 10 . 9 18 17 53 . 70 54 . Explosive 41 | . . . . . . 4 . . . . 3 . 4 . . 3 . . 5 17 5 Electromagnetic 108 | . 22 32 . 31 . 3 4 . 1 . . . . . . 5 . . . 4 6 Robot Hit Streak 23 | 7 15 17 23 8 17 5 6 . . 2 4 . 2 10 14 6 9 . 14 7 5 Robot Miss Streak 4 | 2 4 3 3 3 3 1 3 . 1 2 . . 2 . 1 1 . . 2 3 4 Penetration Max . | . . . . . . . . . . . . . . . . . . . . . . Secondary Targets 4 | . 3 . 1 . . . . . . . . . . . . . . . . . . Max Gunslinging Chain 1 | . 1 . 1 . . . . . . . . . . . . . . . . . . Shots Hit Robots 424 | 16 145 18 75 25 30 5 9 . . 8 5 . 2 8 15 12 8 . 17 20 6 Core Hits 270 | 7 49 10 25 10 14 8 8 . . 5 11 . 6 4 7 14 5 . 15 56 16 Critical Kills 5 | . . . 1 . . . . . . . . . . . . . 1 . 1 2 . Critical Parts Destroyed 1 | . 1 . . . . . . . . . . . . . . . . . . . . Critical Strikes 19 | . 13 . 1 . . . . . . 1 . . . . . . 1 . 1 2 . Burn 12 | . 12 . . . . . . . . . . . . . . . . . . . . Meltdown 4 | . . . . . . . . . . . . . . . . . 1 . 1 2 . Destroy 2 | . 1 . 1 . . . . . . . . . . . . . . . . . . Impale 1 | . . . . . . . . . . 1 . . . . . . . . . . . Melee Attacks 19 | . . . . . . . . . 6 6 7 . . . . . . . . . . Impact . | . . . . . . . . . . . . . . . . . . . . . . Slashing . | . . . . . . . . . . . . . . . . . . . . . . Piercing 19 | . . . . . . . . . 6 6 7 . . . . . . . . . . Sneak Attacks 3 | . . . . . . . . . . . 3 . . . . . . . . . . Combat Hostiles . | . . . . . . . . . . . . . . . . . . . . . . Follow-up Attacks . | . . . . . . . . . . . . . . . . . . . . . . Damage Inflicted 14821 | 210 1750 512 1138 468 444 432 266 . . 491 855 . 575 267 528 812 259 . 1734 3379 701 Guns 4314 | 210 1750 276 1138 385 444 66 45 . . . . . . . . . . . . . . Cannons 2750 | . . . . . . . 221 . . 123 . . . 267 528 230 259 . 426 696 . Explosions 7087 | . . 236 . 83 . 366 . . . . 663 . 575 . . 582 . . 1308 2657 617 Melee 560 | . . . . . . . . . . 368 192 . . . . . . . . . . Ramming 110 | . . . . . . . . . . . . . . . . . . . . 26 84 Kinetic 2707 | 95 556 . 1138 77 444 53 221 . . 123 . . . . . . . . . . . Thermal 4105 | 115 911 236 . 83 . 10 . . . . . . . 267 528 230 259 . 712 754 . Explosive 5528 | . . . . . . 356 . . . . 632 . 575 . . 356 . . 1022 2264 323 Electromagnetic 1811 | . 283 276 . 308 . 13 45 . . . 31 . . . . 226 . . . 335 294 Impact . | . . . . . . . . . . . . . . . . . . . . . . Slashing . | . . . . . . . . . . . . . . . . . . . . . . Piercing 560 | . . . . . . . . . . 368 192 . . . . . . . . . . Highest Corruption 28 | . 1 1 . . . . . 1 . . . . . . . . 2 11 13 28 5 Average Corruption 9 | . 1 1 . . . . . 1 . . . . . . . . 2 9 11 17 2 Corruption Purged . | . . . . . . . . . . . . . . . . . . . . . . Corruption Blocked . | . . . . . . . . . . . . . . . . . . . . . . Effects 141 | . 5 6 . . . . . . . . . . . . . . 1 3 45 77 4 Message Errors 25 | . 1 . . . . . . . . . . . . . . . . 1 8 14 1 Matter Fused 38 | . 1 3 . . . . . . . . . . . . . . 1 . 11 21 1 Heat Flow Errors 15 | . 1 . . . . . . . . . . . . . . . . 1 7 5 1 Energy Discharges 10 | . . 1 . . . . . . . . . . . . . . . . 3 6 . Parts Rejected 3 | . . . . . . . . . . . . . . . . . . . 1 2 . Parts Fused 5 | . 1 . . . . . . . . . . . . . . . . . 2 2 . Data Loss (minor) 18 | . 1 2 . . . . . . . . . . . . . . . . 6 8 1 Data Loss (major) 6 | . . . . . . . . . . . . . . . . . . . 1 5 . Misfires 9 | . . . . . . . . . . . . . . . . . . . 4 5 . Alerts 4 | . . . . . . . . . . . . . . . . . . 1 . 3 . Misdirections 4 | . . . . . . . . . . . . . . . . . . . 1 3 . Weapon Failures 4 | . . . . . . . . . . . . . . . . . . . 1 3 . Overload Shots . | . . . . . . . . . . . . . . . . . . . . . . Overflow Damage 487 | . . 7 . . . 2 23 . . 36 54 . 61 18 20 23 1 . 118 120 4 Projectiles 101 | . . . . . . . 23 . . . . . . 18 20 23 1 . 8 8 . Explosions 350 | . . 7 . . . 2 . . . . 54 . 61 . . . . . 110 112 4 Melee 36 | . . . . . . . . . . 36 . . . . . . . . . . . Knockbacks . | . . . . . . . . . . . . . . . . . . . . . . Impact . | . . . . . . . . . . . . . . . . . . . . . . Kinetic . | . . . . . . . . . . . . . . . . . . . . . . Secondary . | . . . . . . . . . . . . . . . . . . . . . . Self-Inflicted Damage 391 | . . 41 . 19 . . . . . . . . . . . 13 . . 145 22 151 Shots 11 | . . 1 . 1 . . . . . . . . . . . 1 . . 3 1 4 Rammed 7 | . . . . . . . . . . . . . . . . . . . . 1 6 Targets Rammed 7 | . . . . . . . . . . . . . . . . . . . . 1 6 Kicked . | . . . . . . . . . . . . . . . . . . . . . . Crushed . | . . . . . . . . . . . . . . . . . . . . . . Highest Temperature 414 | 56 217 195 22 153 6 20 24 2 228 36 42 122 128 247 332 210 377 233 414 232 164 Average Temperature 83 | 23 33 55 10 49 3 11 9 2 94 8 8 45 67 93 107 81 115 114 93 48 87 Received Heat Transfer 1043 | . 306 42 126 72 72 . 18 9 18 . 39 . . . . . . . 40 106 195 Effects 17 | . . . . . . . . . . . . . . . . . 14 2 1 . . Shutdowns 1 | . . . . . . . . . . . . . . . . . 1 . . . . Energy Bleed 2 | . . . . . . . . . . . . . . . . . 2 . . . . Interference 11 | . . . . . . . . . . . . . . . . . 8 2 1 . . Matter Decay 1 | . . . . . . . . . . . . . . . . . 1 . . . . Short Circuit 1 | . . . . . . . . . . . . . . . . . 1 . . . . Damage (minor) 1 | . . . . . . . . . . . . . . . . . 1 . . . . Siege Activations . | . . . . . . . . . . . . . . . . . . . . . . Robots Corrupted 8 | . . 1 . 2 . . . . . . . . . . . 2 . . . 2 1 Combat Hostiles 5 | . . . . 2 . . . . . . . . . . . 2 . . . . 1 Parts Fried 13 | . 3 2 . 3 . . . . . . . . . . . 2 . . . . 3 Impact Corruptions . | . . . . . . . . . . . . . . . . . . . . . . Robots Melted 6 | . 2 . . . . . . . . . . . . . . . 1 . 1 2 . Combat Hostiles 3 | . 2 . . . . . . . . . . . . . . . . . . 1 . Parts Melted 17 | . 9 . . . . . . . . . . . . . . . 4 . 4 . . Heat Transferred 7524 | 333 3565 150 . 37 . 50 . . . . . . . 400 636 350 400 . 800 803 . Parts Sabotaged . | . . . . . . . . . . . . . . . . . . . . . . Parts Stolen . | . . . . . . . . . . . . . . . . . . . . . . Parts Stripped . | . . . . . . . . . . . . . . . . . . . . . . Power Chain Reactions 8 | . . 3 . 2 . . . . . . . . . . . . . . . 1 2 Alert | -11 -10 -10 -9 -9 -8 -7 -7 -7 -6 -6 -6 -5 -5 -5 -5 -4 -4 -4 -4 -4 -3 ------- Run | Yrd Mat Min Mat Min Mat Fac Low Low Fac Was Fac Fac Upp Upp Zhi Pro Fac Was Fac Ext Res Peak Influence 458 | 35 338 220 397 337 169 191 . . 48 16 397 177 . . . . 104 51 276 458 324 Initial 143 | . 22 90 54 10 3 46 . . . 16 11 114 . . . . . 36 35 49 143 Average 118 | 17 173 113 198 131 91 71 . . 27 16 157 127 . . . . 22 40 111 183 172 Maximum Alert Level 2 | . 1 1 2 1 . . . . . . 1 . . . . . . . 1 2 1 Low Security (%) 76 | 100 49 98 52 80 100 100 . . 100 100 42 100 . . . . 100 100 80 54 59 Level 1 22 | . 50 1 47 19 . . . . . . 57 . . . . . . . 19 40 40 Level 2 . | . . . . . . . . . . . . . . . . . . . . 4 . Level 3 . | . . . . . . . . . . . . . . . . . . . . . . Level 4 . | . . . . . . . . . . . . . . . . . . . . . . Level 5 . | . . . . . . . . . . . . . . . . . . . . . . High Security . | . . . . . . . . . . . . . . . . . . . . . . Max Security . | . . . . . . . . . . . . . . . . . . . . . . Squads Dispatched 50 | . 7 . 2 1 2 4 . . 6 . 3 1 . . . . 5 . 7 4 8 Investigation 25 | . 4 . 2 . 2 3 . . 5 . 2 . . . . . 4 . 2 . 1 Extermination 6 | . . . . . . . . . . . . 1 . . . . 1 . 1 . 3 Reinforcement 17 | . 3 . . . . 1 . . 1 . 1 . . . . . . . 4 3 4 Assault 2 | . . . . 1 . . . . . . . . . . . . . . . 1 . Garrison . | . . . . . . . . . . . . . . . . . . . . . . Intercept . | . . . . . . . . . . . . . . . . . . . . . . Searches Triggered . | . . . . . . . . . . . . . . . . . . . . . . Construction Impeded 7 | . . . . . . 1 . . . . 1 . . . . . . . 1 3 1 Haulers Reinforced . | . . . . . . . . . . . . . . . . . . . . . . Active Scanning Responses . | . . . . . . . . . . . . . . . . . . . . . . Cargo Convoy Interrupts 1 | . . . . . . . . . . . . . . . . . . . . . 1 Stealth | -11 -10 -10 -9 -9 -8 -7 -7 -7 -6 -6 -6 -5 -5 -5 -5 -4 -4 -4 -4 -4 -3 --------- Run | Yrd Mat Min Mat Min Mat Fac Low Low Fac Was Fac Fac Upp Upp Zhi Pro Fac Was Fac Ext Res Distress Signals 18 | . 1 . 4 . . . . . . . 1 . . . . . . . 5 5 2 Communications Jammed . | . . . . . . . . . . . . . . . . . . . . . . Distress Signals . | . . . . . . . . . . . . . . . . . . . . . . Times Spotted 245 | . 34 10 24 19 13 6 1 3 5 . 11 1 3 . . 10 9 11 21 28 36 Peak Tracking Total 14 | . 5 3 4 5 3 4 1 3 2 . 7 2 4 . . 4 6 6 6 10 14 Tactical Retreats 39 | . 2 2 3 3 2 . 1 . 1 . 5 . . . . . 2 . 5 8 5 Traps | -11 -10 -10 -9 -9 -8 -7 -7 -7 -6 -6 -6 -5 -5 -5 -5 -4 -4 -4 -4 -4 -3 ------- Run | Yrd Mat Min Mat Min Mat Fac Low Low Fac Was Fac Fac Upp Upp Zhi Pro Fac Was Fac Ext Res Traps Triggered 19 | . 3 . . . . 1 . . 2 . 3 . . . . . 4 . 2 1 3 Indirectly . | . . . . . . . . . . . . . . . . . . . . . . Trap Hack Attempts . | . . . . . . . . . . . . . . . . . . . . . . Triggered . | . . . . . . . . . . . . . . . . . . . . . . Disarmed . | . . . . . . . . . . . . . . . . . . . . . . Reprogrammed . | . . . . . . . . . . . . . . . . . . . . . . Reused . | . . . . . . . . . . . . . . . . . . . . . . Traps Extracted . | . . . . . . . . . . . . . . . . . . . . . . Installed . | . . . . . . . . . . . . . . . . . . . . . . Triggered 3 | . . . . 1 . . . . . . . . . . . . . . . . 2 Machines | -11 -10 -10 -9 -9 -8 -7 -7 -7 -6 -6 -6 -5 -5 -5 -5 -4 -4 -4 -4 -4 -3 ---------- Run | Yrd Mat Min Mat Min Mat Fac Low Low Fac Was Fac Fac Upp Upp Zhi Pro Fac Was Fac Ext Res Machines Disabled 23 | . 2 2 1 . 1 4 . . . . 4 . . 1 2 . . . 4 1 1 Max in Single Turn 4 | . 1 1 1 . 1 4 . . . . 4 . . 1 1 . . . 3 1 1 Garrison Access 9 | . . . . . . 2 . . 1 . . 1 . . . . 4 . 1 . . Machines Repaired . | . . . . . . . . . . . . . . . . . . . . . . Machines Dismantled . | . . . . . . . . . . . . . . . . . . . . . . Machines Sabotaged . | . . . . . . . . . . . . . . . . . . . . . . Overloaded Fab Kills . | . . . . . . . . . . . . . . . . . . . . . . Hacking | -11 -10 -10 -9 -9 -8 -7 -7 -7 -6 -6 -6 -5 -5 -5 -5 -4 -4 -4 -4 -4 -3 --------- Run | Yrd Mat Min Mat Min Mat Fac Low Low Fac Was Fac Fac Upp Upp Zhi Pro Fac Was Fac Ext Res Machines Accessed 129 | . 7 . 12 . 9 17 1 . 9 . 11 2 1 1 6 . 25 . 17 9 2 Terminals 72 | . 4 . 8 . 6 11 1 . 4 . 5 . . . . . 11 . 11 9 2 Fabricators 11 | . . . . . . 1 . . 2 . 2 . . . . . 4 . 2 . . Repair Stations 10 | . 1 . . . 1 1 . . . . 2 . . . . . 4 . 1 . . Recycling Units 11 | . 2 . 2 . 1 1 . . 1 . 1 1 . . . . 1 . 1 . . Scanalyzers 6 | . . . 2 . . 1 . . 1 . . . . . . . 1 . 1 . . Garrison Access 11 | . . . . . 1 2 . . 1 . 1 1 . . . . 4 . 1 . . Total Hacks 380 | . 21 . 46 . 27 37 1 . 22 . 22 2 1 1 19 . 89 . 70 18 4 Successful 225 | . 11 . 24 . 9 23 1 . 13 . 8 1 1 1 19 . 68 . 35 10 1 Failed 154 | . 10 . 22 . 18 14 . . 9 . 14 1 . . . . 20 . 35 8 3 Catastrophic 29 | . 1 . 3 . . 5 . . 2 . 3 . . . . . 1 . 8 4 2 Database Lockouts 1 | . . . . . . . . . . . . . . . . . 1 . . . . Manual 173 | . 13 . 25 . 17 14 . . 8 . 9 . . . . . 33 . 47 7 . Terminals 230 | . 13 . 29 . 19 22 1 . 10 . 9 . . . . . 52 . 53 18 4 Fabricators 39 | . . . . . . 4 . . 6 . 6 . . . . . 16 . 7 . . Repair Stations 29 | . 5 . . . 3 2 . . . . 4 . . . . . 13 . 2 . . Recycling Units 25 | . 3 . 6 . 3 3 . . 2 . 2 1 . . . . 2 . 3 . . Scanalyzers 22 | . . . 11 . . 3 . . 2 . . . . . . . 2 . 4 . . Garrison Access 14 | . . . . . 2 3 . . 2 . 1 1 . . . . 4 . 1 . . Terminal Hacks 105 | . 3 . 7 . 3 8 1 . 3 . 3 . 1 1 19 . 31 . 15 9 1 Record 9 | . . . . . . . 1 . . . . . . 1 7 . . . . . . Part Schematic 13 | . 1 . . . . 1 . . . . . . . . 4 . 3 . 4 . . Robot Analysis 4 | . . . . . . . . . . . . . . . 4 . . . . . . Prototype ID Bank 9 | . . . 1 . . 1 . . . . . . . . 4 . 3 . . . . Open Door 7 | . . . . . . . . . . . . . 1 . . . . . . 6 . Branch Access Points 5 | . . . . . 1 1 . . . . . . . . . . 1 . 1 . 1 Machine Index 1 | . . . . . . . . . . . . . . . . . 1 . . . . Terminal Index 3 | . . . . . . 1 . . 1 . . . . . . . . . 1 . . Fabricator Index 2 | . . . . . . . . . . . 1 . . . . . . . 1 . . Repair Station Index 2 | . . . . . . . . . . . . . . . . . 1 . 1 . . Scanalyzer Index 1 | . . . 1 . . . . . . . . . . . . . . . . . . Alert Level 5 | . . . . . . . . . . . 1 . . . . . 4 . . . . Unreport Threat 11 | . 1 . 2 . 1 1 . . . . . . . . . . 1 . 4 1 . Locate Traps 11 | . 1 . . . . 1 . . 1 . 1 . . . . . 7 . . . . Recall Investigation 1 | . . . . . . . . . 1 . . . . . . . . . . . . Recall Extermination 2 | . . . . . . . . . . . . . . . . . 1 . 1 . . Recall Assault 1 | . . . . . . . . . . . . . . . . . . . . 1 . Hauler Manifests 1 | . . . . . . . . . . . . . . . . . . . . 1 . Registered Components 1 | . . . . . . . . . . . . . . . . . 1 . . . . Registered Prototypes 2 | . . . . . . . . . . . . . . . . . 2 . . . . Zone Layout 14 | . . . 3 . 1 2 . . . . . . . . . . 6 . 2 . . Fabricator Hacks 19 | . . . . . . 3 . . 3 . 1 . . . . . 9 . 3 . . Network Status 4 | . . . . . . 1 . . 1 . . . . . . . 2 . . . . Load Schematic 11 | . . . . . . 1 . . 2 . 1 . . . . . 5 . 2 . . Build 4 | . . . . . . 1 . . . . . . . . . . 2 . 1 . . Repair Station Hacks 20 | . 4 . . . 2 1 . . . . 1 . . . . . 10 . 2 . . Scan Component 11 | . 2 . . . 1 1 . . . . 1 . . . . . 5 . 1 . . Repair 9 | . 2 . . . 1 . . . . . . . . . . . 5 . 1 . . Recycling Unit Hacks 7 | . . . 1 . . 1 . . 1 . 2 . . . . . 1 . 1 . . Retrieve Components 7 | . . . 1 . . 1 . . 1 . 2 . . . . . 1 . 1 . . Scanalyzer 17 | . . . 9 . . 1 . . 2 . . . . . . . 2 . 3 . . Insert Component 9 | . . . 4 . . 1 . . 1 . . . . . . . 2 . 1 . . Analyze 8 | . . . 5 . . . . . 1 . . . . . . . . . 2 . . Garrison Access Hacks 9 | . . . . . . 2 . . 1 . . 1 . . . . 4 . 1 . . Seal Access 9 | . . . . . . 2 . . 1 . . 1 . . . . 4 . 1 . . Unauthorized Hacks 47 | . 4 . 6 . 4 7 . . 3 . 1 . . . . . 11 . 10 1 . Terminals 31 | . 2 . 4 . 3 6 . . . . 1 . . . . . 6 . 8 1 . Track 2 | . . . 1 . . . . . . . . . . . . . . . 1 . . Assimilate 5 | . . . . . . 3 . . . . . . . . . . 1 . 1 . . Botnet 14 | . 1 . 1 . 1 2 . . . . 1 . . . . . 3 . 5 . . Disrupt 4 | . . . 1 . 1 . . . . . . . . . . . 1 . . 1 . Operators 6 | . 1 . 1 . 1 1 . . . . . . . . . . 1 . 1 . . Fabricators 9 | . . . . . . . . . 2 . . . . . . . 5 . 2 . . Prioritize 2 | . . . . . . . . . . . . . . . . . 1 . 1 . . Recompile 7 | . . . . . . . . . 2 . . . . . . . 4 . 1 . . Repair Stations . | . . . . . . . . . . . . . . . . . . . . . . Recycling Units 7 | . 2 . 2 . 1 1 . . 1 . . . . . . . . . . . . Tunnel 7 | . 2 . 2 . 1 1 . . 1 . . . . . . . . . . . . Scanalyzers . | . . . . . . . . . . . . . . . . . . . . . . Garrison Access . | . . . . . . . . . . . . . . . . . . . . . . Data Cores Recovered 3 | . . . . . 2 1 . . . . . . . . . . . . . . . Used 1 | . . . . . 1 . . . . . . . . . . . . . . . . Hacking Detections 89 | . 5 . 11 . 9 13 1 . 7 . 10 1 . . . . 14 . 11 5 2 Full Trace Events 9 | . . . . . 1 2 . . 2 . 2 . . . . . . . 1 . 1 Feedback Events . | . . . . . . . . . . . . . . . . . . . . . . Feedback Blocked . | . . . . . . . . . . . . . . . . . . . . . . Robot Schematics Acquired . | . . . . . . . . . . . . . . . . . . . . . . Robots Built . | . . . . . . . . . . . . . . . . . . . . . . Authchips . | . . . . . . . . . . . . . . . . . . . . . . Time . | . . . . . . . . . . . . . . . . . . . . . . Total Robot Build Rating . | . . . . . . . . . . . . . . . . . . . . . . Part Schematics Acquired 18 | . 1 . 3 . . 1 . . 1 . . . . . 4 . 3 . 5 . . Parts Built 5 | . . . . . . 1 . . . . . . . . . . 3 . 1 . . Authchips 2 | . . . . . . . . . . . . . . . . . 1 . 1 . . Time 446 | . . . . . . 152 . . . . . . . . . . 107 . 187 . . Total Part Build Rating 35 | . . . . . . 5 . . . . . . . . . . 23 . 7 . . Parts Repaired 9 | . 2 . . . 1 . . . . . . . . . . . 5 . 1 . . Time 313 | . 32 . . . 38 . . . . . . . . . . . 140 . 103 . . Parts Recycled . | . . . . . . . . . . . . . . . . . . . . . . Recycled Matter . | . . . . . . . . . . . . . . . . . . . . . . Retrieved Matter . | . . . . . . . . . . . . . . . . . . . . . . Retrieved Components 7 | . . . 3 . . 1 . . 1 . . . . . . . 1 . 1 . . Parts Scanalyzed 5 | . . . 3 . . 1 . . . . . . . . . . . . 1 . . Part Schematics Acquired 5 | . . . 3 . . . . . 1 . . . . . . . . . 1 . . Parts Damaged . | . . . . . . . . . . . . . . . . . . . . . . Bothacking | -11 -10 -10 -9 -9 -8 -7 -7 -7 -6 -6 -6 -5 -5 -5 -5 -4 -4 -4 -4 -4 -3 ------------ Run | Yrd Mat Min Mat Min Mat Fac Low Low Fac Was Fac Fac Upp Upp Zhi Pro Fac Was Fac Ext Res Used RIF Installer . | . . . . . . . . . . . . . . . . . . . . . . Robots Hacked . | . . . . . . . . . . . . . . . . . . . . . . Non-combat . | . . . . . . . . . . . . . . . . . . . . . . Combat . | . . . . . . . . . . . . . . . . . . . . . . Robot Hacks Applied . | . . . . . . . . . . . . . . . . . . . . . . Relay Couplers Released . | . . . . . . . . . . . . . . . . . . . . . . Fabnet Peak Effective % . | . . . . . . . . . . . . . . . . . . . . . . Robots Rewired 8 | . . . . . . . . . . . . . . . . . . . . 8 . Allies Hacked 1 | . . . . . . . . . . . . . . . . . . . . 1 . Hacks Repelled . | . . . . . . . . . . . . . . . . . . . . . . Allies | -11 -10 -10 -9 -9 -8 -7 -7 -7 -6 -6 -6 -5 -5 -5 -5 -4 -4 -4 -4 -4 -3 -------- Run | Yrd Mat Min Mat Min Mat Fac Low Low Fac Was Fac Fac Upp Upp Zhi Pro Fac Was Fac Ext Res Total Allies 27 | . . . . 5 . 2 . . . . . . . . . . . . 1 16 3 Largest Group 8 | . . . . 4 3 2 . . . . . . . . . . . . 1 8 3 Highest-Rated Group 305 | . . . . 71 40 36 . . . . . . . . . . . . 26 305 138 Highest-Rated Ally 159 | . . . . 31 16 26 . . . . . . . . . . . . 26 159 46 Total Orders . | . . . . . . . . . . . . . . . . . . . . . . Ally Attacks 126 | . . . . 24 32 . . . . . . . . . . . . . . 54 16 Total Damage 2276 | . . . . 279 341 . . . . . . . . . . . . . . 1245 411 Kills 26 | . . . . 7 9 . . . . . . . . . . . . . . 8 2 Allies Corrupted 2 | . . . . . . . . . . . . . . . . . . . . 2 . Allies Melted 1 | . . . . . . . . . . . . . . . . . . . . 1 . Intel | -11 -10 -10 -9 -9 -8 -7 -7 -7 -6 -6 -6 -5 -5 -5 -5 -4 -4 -4 -4 -4 -3 ------- Run | Yrd Mat Min Mat Min Mat Fac Low Low Fac Was Fac Fac Upp Upp Zhi Pro Fac Was Fac Ext Res Robot Analysis Total 4 | . . . . . . . . . . . . . . . 4 . . . . . . Derelict Logs Recovered 12 | . . 2 . 2 . . 2 . . . . . 2 2 . 2 . . . . . Drone Launches . | . . . . . . . . . . . . . . . . . . . . . . Drone Recoveries . | . . . . . . . . . . . . . . . . . . . . . . Exploration | -11 -10 -10 -9 -9 -8 -7 -7 -7 -6 -6 -6 -5 -5 -5 -5 -4 -4 -4 -4 -4 -3 ------------- Run | Yrd Mat Min Mat Min Mat Fac Low Low Fac Was Fac Fac Upp Upp Zhi Pro Fac Was Fac Ext Res Turns Passed 15662 | 154 1403 686 871 1053 606 975 549 312 483 204 724 351 236 362 336 811 1805 111 1197 1611 822 Spaces Moved 17273 | 90 1008 566 641 861 434 1271 946 271 606 312 1232 505 382 549 297 905 2181 175 1653 1520 868 Core 55 | 1 . . . . . . . . . . . . . . . . . . 1 . 53 Treads . | . . . . . . . . . . . . . . . . . . . . . . Legs . | . . . . . . . . . . . . . . . . . . . . . . Wheels 3599 | 89 1008 566 641 861 434 . . . . . . . . . . . . . . . . Hover 13619 | . . . . . . 1271 946 271 606 312 1232 505 382 549 297 905 2181 175 1652 1520 815 Flight . | . . . . . . . . . . . . . . . . . . . . . . Fastest Speed 40 | 50 80 95 95 105 86 44 40 40 40 48 48 48 48 48 48 48 40 40 40 44 50 Average Speed 59 | 86 87 95 98 105 91 57 43 42 66 49 49 48 52 48 65 51 42 40 42 60 62 Slowest Speed 1000 | 100 95 125 125 105 105 112 44 44 102 103 100 48 100 100 100 100 105 40 1000 130 190 Overloaded Moves . | . . . . . . . . . . . . . . . . . . . . . . Propulsion Burnouts . | . . . . . . . . . . . . . . . . . . . . . . Robots Hopped . | . . . . . . . . . . . . . . . . . . . . . . Cave-ins Triggered 2 | . . . . . . . . . . . . . . . . . . . . 2 . Teleports 1 | . . . . . . . . . . . . . . . . . . 1 . . . Exploration Rate (%) 55 | 5 94 98 53 100 31 33 91 28 14 97 36 9 54 59 62 93 47 75 41 73 22 Regions Visited 21 Branch Regions 9 Pre-discovered Areas 14 | . 2 . 2 . 1 1 1 . 1 . . . . 1 3 2 . . . . . Known Exits Taken 13 | . . . . 1 1 1 1 1 . . 1 1 1 1 1 1 . . 1 1 . Unknown Exits Taken 4 | 1 1 1 1 . . . . . . . . . . . . . . . . . . Scrap Searched 15 | . . 1 . 3 . . 4 . . . . . 2 3 . 2 . . . . . Spaces Dug 115 | . . . . . . 1 2 . 5 . 8 7 . . . 18 39 . 28 7 . Terrain Destroyed 654 | . . 22 . 14 . 59 8 . 5 . 25 10 52 . . 41 44 . 133 201 40 Melee 8 | . . . . . . . . . 4 . 4 . . . . . . . . . . Projectile 167 | . . . . . . 1 8 . 1 . 6 10 . . . 10 44 . 55 32 . AOE 479 | . . 22 . 14 . 58 . . . . 15 . 52 . . 31 . . 78 169 40 Terrain Rammed . | . . . . . . . . . . . . . . . . . . . . . . Walls Destroyed . | . . . . . . . . . . . . . . . . . . . . . . Machines Disabled . | . . . . . . . . . . . . . . . . . . . . . . Actions | -11 -10 -10 -9 -9 -8 -7 -7 -7 -6 -6 -6 -5 -5 -5 -5 -4 -4 -4 -4 -4 -3 --------- Run | Yrd Mat Min Mat Min Mat Fac Low Low Fac Was Fac Fac Upp Upp Zhi Pro Fac Was Fac Ext Res Total 21775 | 140 1340 678 777 971 604 1510 1065 467 676 350 1335 603 413 637 417 1228 3015 215 2069 2126 1139 Wait 3283 | 6 155 93 35 80 120 178 90 194 18 13 59 78 7 70 81 277 736 36 307 459 191 Move 17253 | 89 1007 565 640 860 433 1270 945 270 606 311 1231 504 381 548 296 904 2181 174 1652 1518 868 Hop . | . . . . . . . . . . . . . . . . . . . . . . Pick Up 138 | 14 27 . 8 2 10 13 2 . 5 3 7 1 3 1 5 4 15 2 5 6 5 Fast Attach 67 | 7 1 1 3 . 2 3 1 . 4 2 4 4 4 1 1 1 6 . 5 11 6 Attach 67 | . 2 1 4 2 1 7 1 . 5 . 2 1 4 1 3 5 4 1 4 7 12 Detach 38 | . . . 2 . . 3 . . 5 2 2 2 2 2 . 4 . . 2 2 10 Swap 161 | 1 22 2 25 8 7 10 4 2 6 2 4 . 2 3 9 4 8 1 15 18 8 Drop 144 | 9 22 . 11 . 9 16 3 1 6 7 10 3 6 2 4 4 12 1 7 3 8 Fire 541 | 14 104 16 49 19 22 10 18 . 2 3 9 10 4 9 18 25 53 . 72 73 11 Melee 19 | . . . . . . . . . 6 6 7 . . . . . . . . . . Ram 7 | . . . . . . . . . . . . . . . . . . . . 1 6 Kick . | . . . . . . . . . . . . . . . . . . . . . . Crush . | . . . . . . . . . . . . . . . . . . . . . . Escape Stasis 41 | . . . . . . . . . 13 . . . . . . . . . . 14 14 Rewire 16 | . . . . . . . 1 . . 1 . . . . . . . . . 14 . Trap . | . . . . . . . . . . . . . . . . . . . . . . Miscellaneous . | . . . . . . . . . . . . . . . . . . . . . . Route ------- -11/Scrapyard -10/Materials (discovered 6 exits: *Mat x3 / [*Min x2] / [*Sub]) -10/Mines (discovered 2 exits: *Mat x2) -9/Materials (discovered 2 exits: *Mat / [*Min]) -9/Mines (discovered 4 exits: *Mat x2 / [*Exi] / [*Zio]) -8/Materials -7/Factory (discovered 4 exits: *Fac x2 / *Low x2) -7/Lower Caves -7/Lower Caves -6/Factory -6/Waste -6/Factory (discovered 2 exits: *Fac x2) -5/Factory (discovered 2 exits: *Upp x2) -5/Upper Caves -5/Upper Caves (discovered 2 exits: *Fac / *Zhi) -5/Zhirov -4/Proximity Caves -4/Factory (discovered 4 exits: *Upp x2 / *Ext x2) -4/Waste -4/Factory (discovered 5 exits: *Res / *Upp x2 / *Ext x2) -4/Extension (discovered 2 exits: *Res / *Cet) -3/Research (discovered 3 exits: Arm / Qua x2) History --------- Turn | Location | Event 15 | -11/Scrapyard | Discovered new exit (range 15) 155 | -11/Scrapyard | Entered Materials 235 | -10/Materials | Discovered new exit (range 9) 301 | -10/Materials | Build established: Mutant 401 | -10/Materials | Discovered new exit (range 13) 641 | -10/Materials | Core integrity fell below 50% 721 | -10/Materials | Discovered new exit (range 15) 796 | -10/Materials | Discovered new exit (range 11) 862 | -10/Materials | Build established: Scavenger-Mutant 1244 | -10/Materials | Repaired Lgt. Nuclear Core 1258 | -10/Materials | Repaired Sensor Array 1308 | -10/Materials | Discovered new exit (range 11) 1524 | -10/Materials | Discovered new exit (range 4) 1558 | -10/Materials | Entered Mines 1565 | -10/Mines | Met a Derelict bent on vengeance 1570 | -10/Mines | Discovered new exit (range 8) 1716 | -10/Mines | Learned location of 1 exit from Materials 1945 | -10/Mines | Learned Materials stockpile data 2060 | -10/Mines | Discovered new exit (range 15) 2114 | -10/Mines | Core integrity fell below 20% 2244 | -10/Mines | Entered Materials 2244 | -9/Materials | Evolved 2 slots: Utility x2 2245 | -9/Materials | Identified exit to Materials 2600 | -9/Materials | Discovered new exit (range 15) 3115 | -9/Materials | Entered Mines 3116 | -9/Mines | Met a Derelict testing a Signal Generator 3121 | -9/Mines | Build established: Mutant 3126 | -9/Mines | Discovered exit to Materials (range 9) 3262 | -9/Mines | A weapon hastily lodged in a ceiling crevice suddenly fell to the ground 3378 | -9/Mines | Learned Materials security intel 3386 | -9/Mines | A Derelict revealed a hidden shortcut to a safe place 3410 | -9/Mines | Assisted by bots powering up and referring to "LRC-V3" 3454 | -9/Mines | Deemed a non-threat by the Exiles lab entrance 3455 | -9/Mines | Discovered new exit (range 5) 3702 | -9/Mines | Received a Mining Laser from a helpful Derelict 3794 | -9/Mines | Learned 4 Materials zone layouts 3806 | -9/Mines | Discovered exit to Materials (range 12) 4168 | -9/Mines | Entered Materials 4168 | -8/Materials | Accompanied by 3 allies 4168 | -8/Materials | Evolved 2 slots: Propulsion x2 4169 | -8/Materials | Identified exit to Factory 4353 | -8/Materials | Repaired Imp. Terrain Scanner 4589 | -8/Materials | Build established: Scavenger-Mutant 4774 | -8/Materials | Entered Factory 4774 | -7/Factory | Evolved 2 slots: Propulsion x1, Utility x1 4907 | -7/Factory | Identified exit to Lower Caves 4950 | -7/Factory | Discovered new exit (range 16) 4976 | -7/Factory | Discovered new exit (range 16) 4982 | -7/Factory | Identified exit to Factory 5080 | -7/Factory | Build established: Scavenger-Scout 5118 | -7/Factory | Fabricated Antimatter Cannon (x1) 5422 | -7/Factory | Build established: Scavenger-Mutant 5749 | -7/Factory | Entered Lower Caves 5761 | -7/Lower Caves | Build established: Scavenger-Scout 5763 | -7/Lower Caves | Attracted the attention of an 0b10 checkpoint 6160 | -7/Lower Caves | Found Alien Artifact 6160 | -7/Lower Caves | Identified Core Expander 6160 | -7/Lower Caves | Installed Core Expander, added new Propulsion slot 6179 | -7/Lower Caves | Discovered new exit (range 16) 6179 | -7/Lower Caves | Encountered a Warlord checkpoint 6180 | -7/Lower Caves | Learned location of Extension (-4) 6186 | -7/Lower Caves | Identified exit to Lower Caves 6298 | -7/Lower Caves | Entered another Lower Caves area 6511 | -7/Lower Caves | Discovered exit to Factory (range 15) 6610 | -7/Lower Caves | Entered Factory 6610 | -6/Factory | Evolved 2 slots: Power x1, Utility x1 7093 | -6/Factory | Sucked down chute 7093 | -6/Factory | Entered Waste 7093 | -6/Waste | The area was eerily silent 7211 | -6/Waste | Found Prototype Launcher 7211 | -6/Waste | Identified Mni. Smartbomb Launcher 7233 | -6/Waste | Discovered new exit (range 11) 7265 | -6/Waste | Identified exit to Factory 7285 | -6/Waste | Found Damper Plating 7297 | -6/Waste | Entered Factory 7502 | -6/Factory | Found Hvy. Reactive Plating 7533 | -6/Factory | Discovered new exit (range 7) 7539 | -6/Factory | Identified exit to Factory 7917 | -6/Factory | Discovered exit to Factory (range 16) 8021 | -6/Factory | Entered another Factory area 8021 | -5/Factory | Evolved 2 slots: Utility x2 8022 | -5/Factory | Identified exit to Upper Caves 8075 | -5/Factory | Discovered exit to Upper Caves (range 10) 8339 | -5/Factory | Build established: Hacker-Scout 8372 | -5/Factory | Entered Upper Caves 8485 | -5/Upper Caves | Learned Factory emergency access door positions 8531 | -5/Upper Caves | Learned Factory terminal intel 8588 | -5/Upper Caves | Discovered new exit (range 14) 8600 | -5/Upper Caves | Identified exit to Upper Caves 8608 | -5/Upper Caves | Entered another Upper Caves area 8640 | -5/Upper Caves | Discovered new exit (range 8) 8816 | -5/Upper Caves | Learned location of Warlord (-4) 8847 | -5/Upper Caves | Discovered new exit (range 9) 8852 | -5/Upper Caves | Identified exit to Zhirov 8907 | -5/Upper Caves | Learned Factory emergency access door positions 8945 | -5/Upper Caves | Found Alien Artifact 8970 | -5/Upper Caves | Entered Zhirov 8970 | -5/Zhirov | Discovered new exit (range 3) 8979 | -5/Zhirov | Met Zhirov 8990 | -5/Zhirov | Learned location of Testing (-2) 8998 | -5/Zhirov | Zhirov requested help retrieving the SGEMP Prototype 9010 | -5/Zhirov | Found Alien Artifact 9010 | -5/Zhirov | Identified Integrated Reactor 9010 | -5/Zhirov | Installed Integrated Reactor, increased core energy generation (+10) 9020 | -5/Zhirov | Found Alien Artifact 9200 | -5/Zhirov | Identified exit to Proximity Caves 9306 | -5/Zhirov | Entered Proximity Caves 10095 | -4/Proximity Caves | Discovered new exit (range 8) 10098 | -4/Proximity Caves | Identified exit to Factory 10117 | -4/Proximity Caves | Entered Factory 10117 | -4/Factory | Evolved 2 slots: Utility x2 10119 | -4/Factory | Loaded intel: 28 terminal locations 10132 | -4/Factory | Discovered new exit (range 4) 10134 | -4/Factory | Identified exit to Upper Caves 10241 | -4/Factory | Central database locked down 10324 | -4/Factory | Fabricated Lgt. Quantum Reactor (x2) 10364 | -4/Factory | Fabricated Exp. Utility Shielding (x1) 10425 | -4/Factory | Identified exit to Extension 10465 | -4/Factory | Found Quantum Capacitor 10665 | -4/Factory | Repaired Broken Mni. Smartbomb Launcher? 10665 | -4/Factory | Repaired Adv. Hardlight Generator? 10671 | -4/Factory | Repaired Gravmag Array 10720 | -4/Factory | Repaired Hvy. Reactive Plating 11132 | -4/Factory | Repaired Mak. Power Source 11832 | -4/Factory | Identified Dimensional Node Initializer 11832 | -4/Factory | Identified Transdimensional Reconstructor 11922 | -4/Factory | Manually triggered Chute Trap 11922 | -4/Factory | Sucked down chute 11922 | -4/Factory | Entered Waste 11932 | -4/Waste | Spotted C-40 Crusher 11937 | -4/Waste | EMP discharged 11937 | -4/Waste | System corruption reached 10% 11944 | -4/Waste | Spotted C-40 Crusher 11946 | -4/Waste | Spotted C-40 Crusher 11947 | -4/Waste | Spotted C-40 Crusher 11953 | -4/Waste | Spotted C-40 Crusher 11954 | -4/Waste | Spotted C-40 Crusher 11995 | -4/Waste | Warped through subspace 12030 | -4/Waste | Discovered new exit (range 10) 12033 | -4/Waste | Identified exit to Factory 12033 | -4/Waste | Entered Factory 12377 | -4/Factory | Discovered new exit (range 15) 12727 | -4/Factory | Identified exit to Research 12775 | -4/Factory | Build established: Wizard-Mutant 12840 | -4/Factory | Repaired Broken Cmb. Linear Gravjet? 12840 | -4/Factory | Fabricated Exp. Hacking Suite? 13166 | -4/Factory | Spotted B-86 Titan 13230 | -4/Factory | Entered Extension 13243 | -4/Extension | Rescued a captive Derelict 13383 | -4/Extension | Rescued a captive Derelict 13384 | -4/Extension | Rescued a captive Derelict 13409 | -4/Extension | Rescued a captive Derelict 13411 | -4/Extension | Rescued a captive Derelict 13437 | -4/Extension | Rescued a captive Derelict 13480 | -4/Extension | First assault squad dispatched 13548 | -4/Extension | Lost 5 allies 13611 | -4/Extension | Rescued a captive Derelict 13612 | -4/Extension | Rescued a captive Derelict 13672 | -4/Extension | Crushed by falling debris 13855 | -4/Extension | Disrupted transfer network 13959 | -4/Extension | Spotted B-86 Titan 14003 | -4/Extension | Lost 8 allies 14008 | -4/Extension | Lost 4 parts (2p1n1w) 14506 | -4/Extension | Crushed by falling debris 14537 | -4/Extension | Lost 3 parts (3u) 14601 | -4/Extension | Lost 3 parts (2p1u) 14602 | -4/Extension | Rescued A7 14711 | -4/Extension | Extracted ID and sensor layout for unrecognized location from A7's data core 14821 | -4/Extension | Discovered exit to Research (range 10) 14822 | -4/Extension | Discovered new exit (range 6) 14833 | -4/Extension | Identified exit to Cetus 14841 | -4/Extension | Entered Research 14841 | -3/Research | Evolved 2 slots: Utility x2 14881 | -3/Research | Found Gamma Bomb Array 15378 | -3/Research | Spotted B-86 Titan 15429 | -3/Research | Cargo convoy interrupted 15468 | -3/Research | Spotted Striker 15469 | -3/Research | Lost 7 parts (1p3n2u1w) 15513 | -3/Research | Lost 6 allies 15591 | -3/Research | Identified exit to Armory 15591 | -3/Research | Identified exit to Quarantine 15599 | -3/Research | Build established: Hacker-Mutant 15628 | -3/Research | Core integrity fell below 50% 15655 | -3/Research | Core integrity fell below 20% 15658 | -3/Research | Lost 7 parts (4n3u) 15663 | -3/Research | Destroyed by H-77 Assassin with Coil Gun Last Messages --------------- 15639_ =Q%/KY=,K80/PEKABAETDV5NDWXCK 15639_ Triggered Blade Trap. 15639_ Massive razor-sharp blades shoot up from within the floor. 15639_ Graphene Brace severed. 15639_ Authchip [Device] severed. 15639_ Adv. Signal Interpreter severed. 15647_ T-07 Excavator destroyed. 15647_ K-01 Serf collects debris. 15654_ Penetrated by Slug. 15654_ Slug penetrates Door. 15658_ Slug penetrates Wall. 15659_ O-24 Administrator: "IFF HANDSHAKE FAILED. SECURING TERMINAL." 15660_ Penetrated by Slug. 15661_ Slammed into K-01 Serf. 15661_ P-80 Master resets P-80 Master, system corruption cleaned. 15662_ Slug penetrates Wall. 15662_ Penetrated by Slug. 15662_ Hacking Suite destroyed. 15662_ Slug penetrates Door. 15663_ Penetrated by Slug. Map ----- +----------------------------------------------------+ | ## + #???????????????????????????????? | | ## # " "" #???????????????????????????????? | | ## # "R"" ????????????????????????????????? | | ## #? """ ????????????????????????????????? | | ##=! #? ?????????????????????????????????? | | ##%= #?? ?????????????????????????????????? | | ####|* #??######????????????????????????????????? | | #????????????????????????????????????????? | | #????????????????????????????????????????? | | #????????????????????????????????????????? | | #?########???????????????????????????????? | | +### #? #???????????????????????????????? | | ???# # #???????????????????????????????? | | ???# # #???????????????????????????????? | | ???#^ + #???????????????????????????????? | | ???# # #???????????????????????????????? | | ???# # #???????????????????????????????? | | ???# #? #???????????????????????????????? | | ???# #? #???????????????????????????????? | | ??# #?? #???????????????????????????????? | | " # #################+#############??????????? | | " " h R ??????????? | | " # ?????????? | | ???# h ?????????? | | ???# ?????????? | | ???######## ### ###@#######????????????????? | | ??????????# #?# # ?????????????????????? | | ??????????# #?# # #???????????????????? | | ????????? #?# # #???????????????????? | | ??????? #?# # #???????????????????? | | ?????? #?# # #???????????????????? | | ???? #?# # #???????????????????? | | ???####+########?# # #???????????????????? | | ?????????????????# # #???????????????????? | | ?????????????????# # #???????????????????? | | ?????????????????# # #???????????????????? | | ?????????????????# # #???????????????????? | | ?????????????????# # #???????????????????? | | ?????????????????# # #???????????????????? | | ?????????????????# ########???????????????????? | | ?????????????????? ???????????????????????????? | | ?????????????????????????????????????????????????? | | ?????????????????????????????????????????????????? | | ?????????????????????????????????????????????????? | | ?????????????????????????????????????????????????? | | ?????????????????????????????????????????????????? | | ?????????????????????????????????????????????????? | | ?????????????????????????????????????????????????? | | ?????????????????????????????????????????????????? | | ?????????????????????????????????????????????????? | +----------------------------------------------------+ Best States ------------- Heat Dissipation 84 Energy Generation 47 Energy Capacity 1020 Matter Stores 300 Matter Capacity 300 Sight Range 16 Robot Scan Range 16 Terrain Scan Range 16 Terrain Scan Density 210 Armor Coverage 750 Resistance: KI 40 Utility Shielding 90 Evasion (%) 57 Targeting Accuracy 16 Offensive Hacking 50 Defensive Hacking 28 Authchip Count 5 Item Schematics ----------------- Hcp. Storage Unit | -10/Materials | Hacked Hacking Suite | -9/Materials | Scanalyzed Sensor Array | -9/Materials | Scanalyzed Lgt. Armor Plating | -9/Materials | Scanalyzed Enh. Nuclear Core | -7/Factory | Hacked Med. Reactive Plating | -6/Factory | Scanalyzed Assault Drone Bay | -5/Zhirov | Free Exp. Heat Sink | -5/Zhirov | Free Exp. Optical Array | -5/Zhirov | Free Imp. Arc Thrower | -5/Zhirov | Free Exp. Utility Shielding | -4/Factory | Hacked Centrium Leg | -4/Factory | Hacked Cmb. Antigrav System | -4/Factory | Hacked Quantum Capacitor | -4/Factory | Scanalyzed Lrn. Sensor Array | -4/Factory | Hacked Exp. Targeting Computer | -4/Factory | Hacked Prc. Energy Filter | -4/Factory | Hacked Exp. Hacking Suite | -4/Factory | Hacked Robot Schematics ------------------ None Fabricated ------------ Antimatter Cannon | x1 | -7/Factory | Preloaded Lgt. Quantum Reactor | x2 | -4/Factory | Preloaded Exp. Utility Shielding | x1 | -4/Factory | Authchip Exp. Hacking Suite | x1 | -4/Factory | Authchip Alien Tech Used ----------------- Core Expander Integrated Reactor Transdimensional Reconstructor Achievements -------------- None Challenges ------------ None Game ------ Seed RelaySkeletonFlightbrick Manual? 0 Play Time 03:55:57 Cumulative 313.8 hours Start 2025.03.08 @ 19:17:52 End 2025.03.09 @ 23:41:45 Sessions 7 Manual Loads 0 Difficulty Rogue Special Mode None Game No. 169 Rogue 169 Adventurer 0 Explorer 0 Win Type - Total 4 Types 4/0/0/0/0/0/0/0/0 Lore% 57 Gallery% 69 Achievement% 60 Wizard Run 0 Options --------- Layout 0 ASCII 0 Keyboard 1 Movement Vi Keybinds 0 Fullscreen 2 Font 18/SmallcapsGlow Map View 76x50 Zoom Use 0% Tactical HUD 1 Map Filters NONE Filters NONE Steam 1 RUN: 93fb2592-f489-45e0-9216-6729b56569d0